bitfinex/quotes_ETHUSD_20250131
["timestamp","ask_amount","ask_price","bid_price","bid_amount"]
[1738350572823,0.03768963,3317.4,3316.0,0.27740793]
[1738350572824,0.30519996,3317.3,3316.0,0.27740793]
[1738350573005,3.0148,3317.0,3316.3,0.27740793]
[1738350573333,0.79329361,3316.9,3316.3,0.27740793]
[1738350573514,3.01497,3316.8,3316.3,0.27740793]
[1738350573706,0.03769422,3316.7,3316.3,0.27740793]
[1738350574009,3.77046,3316.9,3316.3,0.27740793]
[1738350574174,4.45275542,3316.9,3316.3,0.27740793]
[1738350574374,0.03769424,3316.8,3316.3,0.27740793]
[1738350574705,1.43789542,3316.9,3315.2,3.01714089]
[1738350574894,3.77046,3316.9,3315.0,0.5575]
[1738350575095,3.05266643,3316.8,3315.0,0.5575]
[1738350575590,3.77046,3316.9,3315.1,0.01714727]
[1738350575790,3.01504,3316.7,3315.1,0.01714727]
[1738350576021,3.01504,3316.7,3315.1,0.2806084]
[1738350576322,3.316674,3316.6,3315.1,0.2806084]
[1738350576507,3.35437235,3316.6,3315.1,0.2806084]
[1738350576707,0.301504,3316.6,3315.1,0.2806084]
[1738350577179,0.301504,3316.6,3315.2,0.2806084]
[1738350577377,0.33920314,3316.6,3315.2,0.2806084]
[1738350577621,3.01546,3316.3,3315.2,0.2806084]
[1738350577826,3.24846,3316.3,3315.2,0.2806084]
[1738350578052,0.233,3316.3,3315.2,0.2806084]
[1738350578267,0.7556,3316.9,3315.3,0.0171565]
[1738350578403,0.233,3317.3,3315.6,0.015]
[1738350578599,3.01469,3317.1,3315.7,0.3015]
[1738350578949,3.01469,3317.1,3315.2,0.2881084]
[1738350578950,0.27069508,3317.0,3315.2,0.2881084]
[1738350579151,0.27069508,3317.0,3315.4,0.2806084]
[1738350579299,3.01488,3316.9,3315.4,0.2806084]
[1738350579653,0.03769423,3316.8,3315.4,0.2806084]
[1738350579951,3.28547422,3317.0,3315.4,0.2806084]
[1738350580105,3.0149,3316.9,3315.5,0.2806084]
[1738350580305,3.77497,3316.6,3315.5,0.2806084]
[1738350580538,3.01523,3316.5,3315.5,0.2806084]
[1738350580862,3.01497,3316.8,3315.5,0.2806084]
[1738350581019,3.63002942,3316.9,3315.5,0.2806084]
[1738350581203,3.66772545,3316.9,3315.5,0.2806084]
[1738350581403,3.51562535,3316.8,3315.5,0.2806084]
[1738350581753,3.51563535,3316.8,3315.6,0.2806084]
[1738350581930,3.01512,3316.7,3315.6,0.2806084]
[1738350582253,0.03769864,3316.6,3315.6,0.2806084]
[1738350582438,3.01529,3316.5,3315.6,0.2806084]
[1738350582604,3.0154,3316.4,3315.6,0.2806084]
[1738350582806,3.01544,3316.3,3315.6,0.2806084]
[1738350583158,3.05320143,3316.2,3315.6,0.2806084]
[1738350583315,0.0377015,3316.1,3315.7,0.2806084]
[1738350583501,3.01586,3315.8,3315.7,0.2806084]
[1738350583701,7.674546,3315.8,3315.7,0.15699846]
[1738350583901,3.01637,3315.3,3313.0,8.76]
[1738350584136,3.01631,3315.4,3313.2,0.015]
[1738350584137,0.2707146,3315.2,3313.2,0.015]
[1738350584303,0.233,3315.2,3313.3,0.61772433]
[1738350584505,0.233,3315.2,3313.4,0.015]
[1738350584750,0.03771113,3315.1,3313.3,0.60054078]
[1738350584960,0.03771113,3315.1,3313.4,0.39356764]
[1738350585137,0.03771113,3315.1,3313.1,0.58871103]
[1738350585138,3.82436113,3315.1,3313.1,0.58871103]
[1738350585308,3.01683,3314.8,3313.1,3.0]
[1738350585525,3.01683,3314.8,3313.0,8.76]
[1738350585526,0.03771958,3314.8,3313.0,8.76]
[1738350585725,3.01689,3314.7,3313.0,8.76]
[1738350585978,3.01689,3314.7,3312.9,3.84812489]
[1738350585979,3.01704,3314.5,3313.1,1.26081249]
[1738350586126,0.52379991,3314.6,3312.7,3.015]
[1738350586323,0.779,3314.3,3312.6,8.76]
[1738350586523,0.779,3314.3,3312.7,3.0]
[1738350586777,3.01706,3314.5,3312.7,3.01720462]
[1738350586940,3.82968,3314.7,3312.7,3.0]
[1738350586941,3.82967,3314.7,3312.7,3.0]
[1738350587145,0.382967,3314.6,3312.8,1.176]
[1738350587348,0.382967,3314.6,3312.9,0.015]
[1738350587544,0.85052036,3314.7,3312.8,1.176]
[1738350587855,0.8128,3314.7,3312.9,0.01719511]
[1738350588064,3.82966,3314.7,3313.0,0.0075]
[1738350588262,0.55,3314.6,3312.8,1.176]
[1738350588429,3.01704,3314.5,3312.8,1.176]
[1738350588629,0.36047604,3314.4,3312.9,0.4176]
[1738350589277,0.8128,3314.7,3313.0,0.02470278]
[1738350589484,0.764,3315.1,3313.2,0.0075]
[1738350589782,3.01755,3314.0,3311.8,3.84812489]
[1738350590095,3.01739,3314.2,3311.9,0.01721721]
[1738350590303,0.534739,3314.1,3311.9,0.01721721]
[1738350590600,0.233,3314.1,3312.3,3.84812489]
[1738350591104,0.233,3314.1,3312.4,0.56720253]
[1738350591314,0.03772407,3314.7,3312.4,9.32720253]
[1738350591463,0.8138,3315.3,3313.4,0.55]
[1738350591809,6.01702,3314.6,3312.3,3.84812489]
[1738350592109,6.05449306,3314.8,3312.4,10.02081249]
[1738350592254,6.05449306,3314.8,3312.5,3.565]
[1738350592448,3.233,3314.8,3312.9,0.565]
[1738350592649,0.27071929,3314.8,3313.1,3.0]
[1738350592951,0.32874593,3314.7,3313.2,0.67408616]
[1738350593151,0.233,3315.0,3313.5,3.0]
[1738350593380,0.233,3315.0,3313.6,0.01718568]
[1738350593581,0.233,3315.0,3313.5,3.0]
[1738350594297,0.03771483,3314.9,3313.5,3.0]
[1738350594448,0.03771483,3314.9,3313.2,0.65689318]
[1738350594449,3.01678,3314.8,3313.2,0.65689318]
[1738350594651,3.01698,3314.6,3313.1,3.0]
[1738350594868,3.01725,3314.3,3312.6,3.56893177]
[1738350595071,3.05505396,3314.2,3312.6,3.56893177]
[1738350595495,0.03772396,3314.2,3312.6,3.56893177]
[1738350595795,0.03772396,3314.2,3312.7,3.0]
[1738350595954,0.52364929,3314.1,3312.7,3.65689318]
[1738350596151,3.01775,3313.8,3312.7,0.28018004]
[1738350596378,3.05557395,3313.7,3312.7,0.28018004]
[1738350596652,0.233,3313.6,3312.7,0.28018004]
[1738350597263,3.01744,3314.1,3312.2,0.28018004]
[1738350597617,3.233,3314.0,3312.3,0.01721568]
[1738350597793,0.625044,3313.9,3312.2,0.28018004]
[1738350598709,3.01771,3313.8,3312.2,0.28018004]
[1738350599062,0.623044,3313.9,3312.2,0.28018004]
[1738350599275,3.640664,3313.9,3312.2,0.28018004]
[1738350599516,0.50564077,3313.8,3312.2,0.28018004]
[1738350600605,0.233,3314.0,3312.5,0.0075]
[1738350600819,0.233,3314.7,3312.9,3.0075]
[1738350601032,0.7941,3315.7,3313.4,3.015]
[1738350601326,0.7941,3315.7,3313.6,0.0075]
[1738350601327,3.0161,3315.6,3313.6,0.0075]
[1738350601528,5.87833795,3315.8,3313.9,3.5575]
[1738350601529,2.623,3315.8,3313.9,3.5575]
[1738350601816,3.52294539,3317.0,3313.6,0.0075]
[1738350601817,1.46406342,3316.8,3314.4,3.565]
[1738350602015,0.03769749,3316.7,3314.5,0.76188107]
[1738350602221,3.01544,3316.3,3314.5,0.74473169]
[1738350602382,3.03769817,3316.7,3314.5,0.74473169]
[1738350602383,3.01559,3316.1,3314.5,0.28018004]
[1738350602706,3.01668,3314.9,3314.5,0.28018004]
[1738350602859,0.0075,3314.7,3314.5,0.28018004]
[1738350603066,3.01695,3314.6,3314.5,0.28018004]
[1738350603365,3.233,3315.0,3314.5,0.28018004]
[1738350603366,0.233,3315.0,3314.5,0.28018004]
[1738350603580,3.01674,3314.9,3314.5,0.28018004]
[1738350603777,0.3287456,3314.8,3314.5,0.28018004]
[1738350604212,0.0075,3314.9,3314.5,0.28018004]
[1738350604416,6.58195,3314.6,3313.0,0.28018004]
[1738350604564,3.01756,3314.0,3313.0,0.28018004]
[1738350604764,0.03772786,3313.9,3313.0,0.28018004]
[1738350605076,3.01741,3314.1,3313.0,0.28018004]
[1738350605282,3.01766,3313.9,3313.0,0.28018004]
[1738350605482,3.01801,3313.5,3313.0,0.28018004]
[1738350605882,0.233,3313.6,3312.2,0.28018004]
[1738350606080,3.01814,3313.3,3312.2,0.28018004]
[1738350606268,3.01796,3313.5,3312.2,0.28018004]
[1738350606601,0.233,3313.6,3312.2,0.28018004]
[1738350606602,0.325096,3313.4,3312.2,0.28018004]
[1738350606815,0.233,3313.8,3312.3,3.89953904]
[1738350606965,0.233,3313.8,3312.3,3.88231688]
[1738350607165,0.03773115,3313.7,3312.2,0.28018004]
[1738350607421,3.28843332,3313.8,3312.2,0.28018004]
[1738350607706,3.01796,3313.5,3312.2,0.28018004]
[1738350608007,3.01829,3313.2,3312.2,0.28018004]
[1738350608236,3.0,3312.9,3312.2,0.28018004]
[1738350608437,3.03773964,3312.9,3312.2,0.28018004]
[1738350608957,3.565,3313.3,3312.1,0.005]
[1738350609230,3.0,3313.1,3312.1,0.005]
[1738350609438,0.0075,3312.9,3312.1,0.005]
[1738350609941,6.01833,3313.1,3312.1,0.005]
[1738350610322,3.0,3313.1,3312.1,0.005]
[1738350610839,0.233,3313.8,3312.3,3.88231688]
[1738350611137,3.03772973,3313.7,3312.1,0.005]
[1738350611351,3.01801,3313.5,3312.1,0.005]
[1738350611508,0.32707297,3313.6,3312.1,0.005]
[1738350611712,0.233,3314.0,3312.4,3.0]
[1738350611943,0.233,3314.1,3312.6,0.0075]
[1738350612096,3.05422311,3315.1,3312.7,0.01720061]
[1738350612298,0.787,3315.0,3313.3,3.88231688]
[1738350612527,3.01641,3315.2,3313.4,3.01718894]
[1738350612737,3.318151,3315.1,3313.5,0.68995058]
[1738350612936,0.301641,3315.1,3313.5,0.70713934]
[1738350613140,0.33935813,3315.1,3313.5,0.97013062]
[1738350613338,0.03771713,3315.1,3313.5,0.97013062]
[1738350613493,3.05421713,3315.1,3313.5,0.28018004]
[1738350613926,3.01677,3314.8,3313.5,0.28018004]
[1738350614137,0.03771784,3314.7,3313.5,0.28018004]
[1738350614312,3.05464784,3314.7,3313.5,0.28018004]
[1738350614509,3.01711,3314.5,3313.5,0.28018004]
[1738350614725,3.35664525,3314.4,3313.6,0.28018004]
[1738350615137,3.01738,3314.2,3313.6,0.28018004]
[1738350615339,0.79682399,3314.3,3313.6,0.28018004]
[1738350615501,3.01723,3314.3,3313.6,0.28018004]
[1738350615728,0.233,3314.3,3313.6,0.28018004]
[1738350616148,0.558011,3314.3,3313.6,0.28018004]
[1738350616351,0.59573397,3314.3,3313.6,0.28018004]
[1738350616550,3.01742,3314.1,3313.0,0.28018004]
[1738350616860,3.01732,3314.2,3313.0,0.28018004]
[1738350617064,0.233,3314.3,3313.0,0.28018004]
[1738350618064,0.233,3314.3,3313.1,0.01720347]
[1738350618631,0.233,3314.7,3313.2,0.28018004]
[1738350618841,0.324968,3314.7,3313.2,0.28018004]
[1738350619026,0.233,3314.8,3313.3,0.01719206]
[1738350619245,0.0075,3315.0,3313.3,0.01719205]
[1738350619471,0.233,3314.9,3313.3,0.01719205]
[1738350619667,0.233,3314.9,3313.2,0.29737209]
[1738350619869,0.233,3314.9,3313.4,0.01719205]
[1738350620051,0.233,3315.4,3313.5,0.565]
[1738350620358,0.233,3315.3,3313.6,1.2325]
[1738350620557,0.233,3315.3,3313.7,0.01718424]
[1738350620760,0.233,3315.5,3314.0,0.0075]
[1738350620951,0.233,3315.8,3314.2,0.0075]
[1738350621155,0.233,3315.8,3314.1,8.76]
[1738350621355,3.0162,3315.5,3314.1,8.76]
[1738350621958,3.01602,3315.7,3314.2,0.01717682]
[1738350622161,3.01605,3315.6,3314.2,0.28018004]
[1738350622359,3.01628,3315.4,3314.2,0.28018004]
[1738350622560,0.03771263,3315.3,3314.2,0.28018004]
[1738350622855,0.30539926,3315.2,3314.2,0.28018004]
[1738350623054,0.233,3315.6,3314.2,3.29735519]
[1738350623268,3.24907,3315.6,3314.2,3.28018004]
[1738350623496,0.233,3315.6,3314.2,3.28018004]
[1738350624059,0.60568863,3315.9,3314.2,3.28018004]
[1738350624060,0.233,3316.5,3314.8,3.88231688]
[1738350624258,3.01537,3316.4,3314.9,0.40538995]
[1738350624499,0.03770104,3316.4,3314.5,3.60845641]
[1738350624701,3.56553123,3316.8,3314.7,0.565]
[1738350624859,0.233,3316.6,3315.2,3.0]
[1738350625502,3.05292522,3316.5,3314.9,8.76]
[1738350625672,0.03769522,3316.5,3314.9,8.76]
[1738350625879,3.01531,3316.4,3314.9,8.76]
[1738350626174,3.01555,3316.2,3314.6,0.28018004]
[1738350626377,0.32706952,3316.5,3315.1,3.56553123]
[1738350626704,0.233,3316.6,3314.9,0.5575]
[1738350626906,0.61385814,3317.1,3315.7,3.87530834]
[1738350627074,3.82048,3318.5,3316.2,3.0]
[1738350627276,3.01356,3318.4,3316.7,3.0]
[1738350627489,0.807,3318.5,3316.7,0.0171127]
[1738350627661,3.0,3318.2,3315.6,3.87530834]
[1738350627866,3.0,3318.2,3315.8,0.5901855]
[1738350627867,3.01396,3317.9,3315.8,0.5901855]
[1738350628104,0.7737,3317.7,3315.9,3.0]
[1738350628406,0.7737,3317.7,3315.2,3.0]
[1738350628407,0.0075,3317.2,3315.2,3.0]
[1738350628565,3.01477,3317.0,3315.2,3.0]
[1738350629102,0.233,3317.1,3315.3,0.017142]
[1738350629301,0.233,3317.1,3315.2,3.0]
[1738350629302,3.01487,3316.9,3315.4,0.3017142]
[1738350629501,0.325514,3317.0,3315.4,0.31885619]
[1738350630005,0.233,3317.1,3315.4,0.3017142]
[1738350630205,0.03769164,3316.9,3315.2,3.0]
[1738350630409,0.233,3317.1,3315.3,0.01714266]
[1738350630565,3.24768,3317.1,3315.2,3.0]
[1738350630765,0.233,3317.1,3315.3,0.01714038]
[1738350631203,0.0075,3317.0,3315.3,0.01714038]
[1738350631371,0.0075,3317.0,3314.9,9.91179198]
[1738350631372,3.01511,3316.7,3315.0,3.0]
[1738350631700,0.301511,3316.6,3315.1,1.2911792]
[1738350631911,3.01522,3316.6,3315.1,1.2911792]
[1738350632073,0.0075,3316.6,3315.1,1.2911792]
[1738350632278,3.01522,3316.5,3315.1,1.2911792]
[1738350632474,0.03770049,3316.7,3315.2,0.05473077]
[1738350632782,3.01486,3316.9,3314.8,0.56715351]
[1738350632990,0.60451499,3316.8,3314.9,0.05490592]
[1738350633198,3.82249,3317.4,3315.1,3.88280834]
[1738350633399,0.808,3318.0,3315.7,3.015]
[1738350633678,0.808,3318.0,3314.9,0.3]
[1738350633679,0.412181,3318.0,3316.4,0.0075]
[1738350633881,0.808,3318.5,3316.5,0.0075]
[1738350634081,0.233,3318.5,3316.8,0.5575]
[1738350634285,0.03767556,3318.4,3316.8,0.5575]
[1738350634497,0.03767557,3318.4,3316.9,0.05251001]
[1738350634921,3.0136,3318.3,3316.9,0.05251001]
[1738350635117,0.30512756,3318.2,3316.9,0.05251001]
[1738350635318,0.233,3318.5,3317.0,0.0171055]
[1738350635660,0.233,3318.5,3316.8,0.0171055]
[1738350635784,0.233,3318.5,3317.1,0.05239339]
[1738350635984,0.233,3318.6,3316.9,0.0075]
[1738350636187,3.24614,3318.8,3317.0,0.06863411]
[1738350636496,0.233,3318.8,3317.0,0.06863411]
[1738350636705,0.59443471,3319.1,3317.7,3.0]
[1738350637033,0.233,3319.4,3317.8,0.05098294]
[1738350637401,0.233,3319.4,3317.8,0.0680702]
[1738350637603,0.557544,3319.4,3317.9,0.30680702]
[1738350637791,0.233,3319.4,3318.0,0.05069475]
[1738350637992,3.01294,3319.1,3318.0,0.05069475]
[1738350638237,3.01329,3318.7,3316.6,3.87530834]
[1738350638576,3.01332,3318.6,3317.0,0.05123091]
[1738350638777,0.233,3318.7,3317.2,3.0]
[1738350638973,0.233,3318.7,3317.3,0.03209782]
[1738350639187,0.233,3318.7,3317.3,0.08148997]
[1738350639330,3.0127,3319.3,3317.3,0.61439215]
[1738350639525,0.30127,3319.2,3317.4,12.12314798]
[1738350639726,0.232,3319.4,3317.3,0.04939215]
[1738350639727,3.01343,3318.5,3317.3,0.04939215]
[1738350640069,3.01374,3318.2,3317.4,0.04939001]
[1738350640227,3.56362,3318.3,3317.4,0.04939001]
[1738350640426,3.01379,3318.1,3316.4,0.0075]
[1738350640736,3.56346,3318.5,3316.5,0.0467163]
[1738350640942,3.671179,3318.4,3316.6,0.30713301]
[1738350641141,3.671179,3318.4,3316.7,0.01711149]
[1738350641479,3.0136,3318.3,3316.7,0.04660589]
[1738350641831,0.657679,3318.4,3316.7,3.04660589]
[1738350642027,3.01335,3318.6,3316.8,0.72290472]
[1738350642267,3.01335,3318.6,3316.9,0.04657975]
[1738350642477,0.55,3318.6,3316.9,0.04657975]
[1738350642881,0.232,3318.5,3316.9,0.06368623]
[1738350643033,0.232,3318.5,3316.9,0.04657975]
[1738350643234,0.3283026,3318.4,3316.9,0.04657975]
[1738350643624,3.3418026,3318.4,3316.9,0.04657975]
[1738350643846,3.01383,3318.1,3316.9,0.04657975]
[1738350644085,3.01383,3318.1,3316.3,8.76]
[1738350644086,0.03767968,3318.0,3316.3,8.76]
[1738350644387,3.05146242,3318.1,3317.0,0.04649335]
[1738350644535,3.31902624,3318.0,3316.3,8.76]
[1738350644735,3.05166239,3317.9,3317.1,0.04643503]
[1738350644971,3.01398,3317.9,3316.4,3.0]
[1738350645275,0.30514624,3318.0,3316.0,0.0075]
[1738350645276,3.01429,3317.6,3316.5,0.04678495]
[1738350645447,3.01405,3317.8,3316.0,8.76]
[1738350645655,3.86933368,3317.7,3316.1,3.9230183]
[1738350645846,0.30517368,3317.7,3316.1,3.9230183]
[1738350646051,0.30514624,3318.0,3316.1,3.9230183]
[1738350646052,0.232,3317.6,3316.2,0.0075]
[1738350646378,0.232,3317.6,3316.3,0.04690162]
[1738350647333,0.55,3317.3,3316.3,0.04690162]
[1738350647533,3.05232157,3317.2,3315.1,3.87530834]
[1738350647844,3.05232157,3317.2,3315.2,0.06233396]
[1738350648059,0.36023216,3317.1,3315.4,0.0075]
[1738350648351,0.03769157,3317.0,3315.4,0.0075]
[1738350648682,0.36023216,3317.1,3315.6,3.0]
[1738350649177,0.36023216,3317.1,3315.7,0.04704213]
[1738350649341,3.56449,3317.3,3315.7,0.04704213]
[1738350649537,0.03769153,3317.2,3315.7,0.04704213]
[1738350649853,0.55,3317.1,3315.7,0.04704213]
[1738350650792,3.60663141,3317.4,3315.7,0.04704213]
[1738350650997,3.01459,3317.2,3315.7,0.04704213]
[1738350651203,0.85522836,3317.1,3315.7,0.04704213]
[1738350651501,0.55,3317.0,3315.7,0.04704213]
[1738350652109,0.5575,3316.6,3315.7,0.04704213]
[1738350652273,3.01568,3316.0,3315.7,0.04704213]
[1738350652594,1.3052,3315.8,3314.3,3.56357362]
[1738350652780,0.49677552,3315.7,3314.4,0.35635736]
[1738350653098,0.45906742,3315.7,3314.4,0.35635736]
[1738350653299,0.232,3315.9,3314.5,0.04331544]
[1738350653900,3.01601,3315.7,3314.5,0.04331544]
[1738350654104,3.01614,3315.5,3314.5,0.04331544]
[1738350654278,0.55,3315.6,3314.5,0.04331544]
[1738350654481,0.232,3315.9,3314.0,0.01717347]
[1738350654791,0.874774,3315.8,3314.1,0.35807471]
[1738350654985,0.0075,3315.6,3314.1,0.40197688]
[1738350655172,0.55,3315.2,3314.1,0.04390217]
[1738350655374,3.01651,3315.1,3314.1,0.04390217]
[1738350655588,0.55,3315.2,3313.5,0.01718397]
[1738350655988,3.01583,3315.9,3313.9,3.8774857]
[1738350656188,0.8312,3316.0,3313.9,3.8774857]
[1738350656189,0.232,3315.8,3313.9,3.8774857]
[1738350656402,0.782,3315.8,3314.0,0.44729026]
[1738350656613,0.8312,3316.4,3314.4,3.8774857]
[1738350656766,0.232,3316.2,3314.5,0.02465654]
[1738350656967,0.232,3316.2,3314.6,0.0075]
[1738350657224,0.232,3316.2,3314.7,0.0075]
[1738350657371,0.232,3316.2,3314.7,1.23367722]
[1738350657570,0.0075,3316.1,3314.8,0.01715312]
[1738350657917,0.232,3316.2,3314.9,0.04172123]
[1738350658283,0.232,3316.2,3314.9,0.05887666]
[1738350658485,0.232,3316.2,3314.9,0.04172123]
[1738350658801,0.232,3316.2,3315.0,0.01715542]
[1738350659018,0.233,3316.3,3315.0,0.01715542]
[1738350659184,0.233,3316.3,3315.1,0.73512507]
[1738350659769,0.233,3316.3,3315.2,0.01714517]
[1738350660003,0.233,3316.3,3315.1,0.73512507]
[1738350660169,0.233,3316.3,3315.3,0.04130648]
[1738350660368,0.63170996,3316.9,3315.4,3.0]
[1738350660565,0.232,3317.7,3315.9,3.8774857]
[1738350660834,0.232,3317.9,3316.1,0.015]
[1738350661035,0.232,3317.9,3316.5,3.0]
[1738350661245,0.232,3317.9,3316.6,8.77711261]
[1738350661429,0.232,3317.9,3316.8,3.0]
[1738350661641,0.232,3317.9,3316.9,0.04032923]
[1738350661820,0.0075,3318.4,3316.9,0.04032923]
[1738350662020,0.232,3318.3,3316.9,0.05744274]
[1738350662207,0.232,3318.3,3316.9,0.04032923]
[1738350662208,3.01413,3317.8,3316.9,0.04032923]
[1738350662408,3.0144,3317.4,3316.9,0.04032923]
[1738350662724,0.30144,3317.3,3316.1,3.0]
[1738350662923,0.30144,3317.3,3317.0,0.03708517]
[1738350663125,0.30144,3317.3,3316.1,3.0]
[1738350663370,0.03768931,3317.2,3315.6,8.76]
[1738350663515,0.015,3316.9,3316.2,0.03755179]
[1738350663713,0.232,3316.8,3315.1,0.71077764]
[1738350663906,0.232,3316.7,3316.3,0.03630436]
[1738350664123,0.232,3316.7,3315.3,8.76]
[1738350664321,0.03769306,3316.6,3316.4,0.03624602]
[1738350664546,0.232,3316.7,3315.4,0.87675]
[1738350664721,0.232,3316.7,3316.5,0.03618769]
[1738350664944,3.01519,3316.6,3315.1,3.69363623]
[1738350665144,1.0281,3316.7,3315.1,3.69363623]
[1738350665360,0.232,3316.7,3315.2,0.03694628]
[1738350665521,0.0075,3316.6,3315.2,0.05409611]
[1738350665722,0.0075,3316.6,3315.3,0.37477323]
[1738350665959,0.232,3316.7,3315.4,0.01714979]
[1738350666159,3.24706,3316.7,3315.4,0.03682954]
[1738350666327,3.06040567,3316.6,3315.4,0.03682954]
[1738350666665,0.0075,3316.6,3315.4,0.03682954]
[1738350666971,3.01559,3316.1,3315.4,0.03682954]
[1738350667113,3.05329315,3316.1,3315.4,0.03682954]
[1738350667314,0.7986,3316.2,3314.8,3.0]
[1738350667533,0.60332134,3316.3,3315.5,0.03677117]
[1738350667733,0.325456,3316.5,3314.8,3.0171614]
[1738350667933,0.7986,3316.6,3314.9,1.17771614]
[1738350668115,3.01497,3316.8,3315.0,3.01715]
[1738350668333,0.8064,3317.0,3315.2,3.0]
[1738350668546,0.232,3316.9,3315.5,3.0]
[1738350668868,4.41952914,3317.4,3315.6,0.01713725]
[1738350669073,0.232,3317.0,3315.7,3.30171373]
[1738350669281,0.03768923,3316.9,3315.7,3.30171373]
[1738350669590,0.232,3317.0,3315.8,8.79659609]
[1738350670349,3.24679,3317.0,3315.8,8.79659609]
[1738350670677,3.24685,3317.0,3315.8,8.79659609]
[1738350670860,0.324685,3316.9,3315.8,8.79659609]
[1738350671049,0.3623763,3316.9,3315.8,8.79659609]
[1738350671235,0.0075,3316.8,3315.8,0.03659609]
[1738350671431,0.0075,3316.8,3315.5,3.0]
[1738350671640,0.03769526,3316.7,3315.6,0.03692484]
[1738350671829,3.01523,3316.5,3315.6,0.03692484]
[1738350672029,0.03769777,3316.4,3315.1,3.0]
[1738350672276,3.01546,3316.3,3315.0,8.76]
[1738350672481,0.03769973,3316.2,3315.2,0.03715832]
[1738350672679,0.0075,3316.1,3315.2,0.03715832]
[1738350672834,0.0075,3316.1,3315.3,0.03709994]
[1738350672835,3.01569,3316.0,3315.3,0.03709994]
[1738350673186,3.01569,3316.0,3314.1,0.59243299]
[1738350673187,0.0075,3315.9,3314.6,8.76]
[1738350673338,0.0075,3315.9,3314.7,0.876]
[1738350673538,0.0075,3315.9,3314.7,0.03745024]
[1738350673878,0.0075,3315.9,3314.4,11.77716541]
[1738350674078,0.0075,3315.9,3314.8,0.03794392]
[1738350674379,0.0075,3315.9,3314.4,11.76]
[1738350674568,0.0075,3315.9,3314.9,0.03788553]
[1738350674782,0.0075,3315.9,3314.4,11.76]
[1738350674932,0.42574203,3315.9,3315.0,0.03782715]
[1738350675137,3.02328,3315.9,3314.5,1.176]
[1738350675338,0.79610629,3315.8,3315.1,0.03776877]
[1738350675598,3.81199629,3315.8,3314.4,3.0]
[1738350675740,0.0075,3315.9,3315.2,0.03771039]
[1738350675975,0.232,3315.8,3314.5,0.01716209]
[1738350676501,0.232,3315.8,3314.6,0.03806071]
[1738350676707,0.232,3315.8,3314.6,0.34358299]
[1738350677102,0.0075,3315.9,3314.6,0.34358299]
[1738350677279,0.232,3315.7,3314.6,0.34358299]
[1738350678125,0.7584,3316.2,3314.7,0.01716488]
[1738350678333,0.232,3316.2,3314.7,0.03800231]
[1738350678618,0.232,3316.6,3315.0,3.0]
[1738350678821,0.232,3316.6,3315.1,0.68774857]
[1738350679123,0.0075,3316.4,3315.1,0.72551734]
[1738350679288,0.0075,3316.2,3315.1,0.03776877]
[1738350679475,3.01523,3316.5,3315.1,0.03776877]
[1738350679977,0.0075,3316.0,3315.1,0.03776877]
[1738350680190,0.0075,3316.0,3315.0,0.3]
[1738350680384,0.0075,3316.0,3315.2,0.03799428]
[1738350680614,3.02324,3316.0,3315.1,0.03805265]
[1738350680788,3.79817792,3316.6,3315.0,0.3]
[1738350680985,3.05293122,3316.5,3315.2,0.03799428]
[1738350681298,0.5575,3316.5,3315.3,0.0379359]
[1738350681599,0.5575,3316.5,3315.0,0.3]
[1738350681801,0.7584,3316.8,3315.4,0.03787753]
[1738350682111,0.232,3316.4,3315.5,0.03781916]
[1738350682320,0.60591607,3316.8,3315.5,0.03781916]
[1738350682624,1.438925,3318.0,3316.7,3.56617792]
[1738350682823,1.206925,3318.0,3316.8,3.01711403]
[1738350683127,0.7584,3318.5,3317.2,3.0]
[1738350683128,0.232,3318.4,3317.2,3.0]
[1738350683293,0.232,3318.4,3316.9,8.79700239]
[1738350683294,0.36221813,3318.3,3316.9,8.79700239]
[1738350683622,0.0075,3317.7,3317.3,0.03676915]
[1738350683775,0.0075,3317.7,3316.0,3.0]
[1738350683977,3.77962,3318.2,3317.4,0.03671085]
[1738350683978,3.77212,3318.2,3317.4,0.03671085]
[1738350684206,3.01388,3318.0,3316.5,8.76]
[1738350684424,0.0075,3318.0,3316.5,8.76]
[1738350684572,0.385462,3318.0,3316.6,1.21317736]
[1738350684779,3.399332,3318.0,3316.6,1.21317736]
[1738350684974,0.7584,3318.2,3316.6,4.23029499]
[1738350685194,0.232,3318.1,3316.6,4.21317736]
[1738350685406,0.26967809,3318.1,3316.6,4.21317736]
[1738350685607,3.28352809,3318.1,3316.6,4.21317736]
[1738350686125,0.232,3318.1,3316.6,4.23029294]
[1738350686330,0.232,3318.1,3316.7,1.29902929]
[1738350686490,3.80115,3318.6,3316.8,0.01711555]
[1738350686696,0.232,3318.1,3316.9,3.0359201]
[1738350687031,0.232,3318.2,3316.9,3.05302762]
[1738350687192,0.232,3318.2,3316.9,3.0359201]
[1738350687393,0.232,3318.2,3317.0,1.17959201]
[1738350687616,0.232,3318.2,3317.1,0.01710438]
[1738350687818,0.232,3318.2,3317.1,0.05290474]
[1738350688523,0.232,3318.2,3317.0,1.04019616]
[1738350688822,0.232,3318.2,3317.2,0.03446035]
[1738350689113,0.60457792,3318.8,3317.3,0.03440205]
[1738350689291,0.232,3318.7,3317.3,0.03440205]
[1738350689493,0.232,3318.7,3317.4,3.0]
[1738350689701,0.5575,3319.1,3317.5,1.21368202]
[1738350689921,0.5575,3319.1,3317.5,9.97368202]
[1738350690077,0.232,3319.0,3317.5,9.97368202]
[1738350690716,0.03767064,3319.3,3317.5,9.97368202]
[1738350690940,0.232,3319.2,3317.6,3.0]
[1738350691106,0.324469,3319.1,3317.7,1.2973682]
[1738350691311,0.232,3319.1,3317.7,1.33141551]
[1738350692594,0.232,3319.6,3317.7,1.33141551]
[1738350693216,3.01223,3319.8,3317.8,8.76]
[1738350693420,0.232,3319.5,3318.0,3.0]